Cogmind - Beta 14 @@@ ROGUE MODE // 2025.03.21 @ 20:11:50 // Winter2019/RPGLIKE Player: Lava Result: Destroyed by G-47 Trooper with Particle Gun Performance ------------- Evolutions (0) 0 Regions Visited (1) 200 Robots Destroyed (17) 85 Value Destroyed (354) 354 Prototype IDs (0) 0 Alien Tech Used (0) 0 Bonus (0) 0 TOTAL SCORE: 639 Bonus ------- None Cogmind --------- Core Integrity 0/600 Matter 288/300 Energy 125/125 System Corruption 0% Temperature Cool (9) Movement Treading (160) Location -10/Materials Parts ------- > --- POWER (1) -------- Light Ion Engine > --- PROPULSION (2) --- Light Treads Light Treads > --- UTILITY (1) ------ Hacking Suite > --- WEAPON (2) ------- Assault Rifle Assault Rifle > --- INVENTORY (1) ---- Signal Interpreter Peak State ------------ > --- POWER ------------ Light Ion Engine > --- PROPULSION ------- Light Treads Light Treads > --- UTILITY ---------- Hacking Suite > --- WEAPON ----------- Assault Rifle Assault Rifle > --- INVENTORY -------- Signal Interpreter [Rating: 8] Favorites ----------- Power Light Ion Engine Engine Light Ion Engine Propulsion Light Treads Treads Light Treads Utility Hacking Suite Hackware Hacking Suite Weapon Assault Rifle Ballistic Gun Assault Rifle Build | -11 -10 ------- Run | Yrd Mat Slots Evolved 2 | 2 . Power . | . . Propulsion 1 | 1 . Utility . | . . Weapon 1 | 1 . Parts Attached 6 | 5 1 Power 1 | 1 . Engine 1 | 1 . Core . | . . Reactor . | . . Propulsion 2 | 2 . Treads 2 | 2 . Leg . | . . Wheel . | . . Hover . | . . Flight . | . . Utility 1 | . 1 Device . | . . Storage . | . . Processor . | . . Hackware 1 | . 1 Protection . | . . Artifact . | . . Weapon 2 | 2 . Energy Gun . | . . Energy Cannon . | . . Ballistic Gun 2 | 2 . Ballistic Cannon . | . . Launcher . | . . Special Weapon . | . . Impact Weapon . | . . Slashing Weapon . | . . Piercing Weapon . | . . Special Melee Weapon . | . . Unidentified Prototypes . | . . Parts Lost . | . . Power . | . . Propulsion . | . . Utility . | . . Weapon . | . . Highest Loss Streak . | . . To Critical Strikes . | . . Average Slot Usage (%) 91 | . 91 Engine 16 | . 16 Treads 33 | . 33 Hackware 8 | . 8 Ballistic Gun 33 | . 33 Peak Build Rating 8 | 5 8 Average Rating 6 | 4 6 On Entrance 2 | . 5 Naked Turns . | . . Heaviest Build 7 | 7 7 Greatest Support 40 | 40 40 Greatest Overweight (x) 1 | 1 . Average Overweight (x) . | . . Largest Inventory Capacity 1 | 1 1 Average Capacity 1 | 1 1 Most Carried 1 | 1 1 Average Carried . | . . Final Capacity 1 | 1 1 Final Carried 1 | . 1 Class Distribution -------------------- 100% | Mutant Dominant Class ---------------- Mutant | -10/Materials Resources | -11 -10 ----------- Run | Yrd Mat Matter Collected 512 | 250 262 Remotely . | . . Salvage Created 505 | . 505 Parts 39 | . 39 Haulers Intercepted . | . . Recyclers Shooed . | . . Parts Field Recycled . | . . Retrieved Matter . | . . Parts Self-Destructed . | . . Prevented . | . . Kills | -11 -10 ------- Run | Yrd Mat Combat Hostiles Destroyed 9 | . 9 Guns 8 | . 8 AOE 1 | . 1 Classes Destroyed 7 | . 7 Worker 1 | . 1 Builder 2 | . 2 Recycler 1 | . 1 Operator 1 | . 1 Watcher 3 | . 3 Swarmer 4 | . 4 Grunt 5 | . 5 Best Kill Streak 5 | . 5 Combat Bots Only 4 | . 4 Max Kills in Single Turn 4 | . 4 Gunslinging . | . . Exploded 1 | . 1 Melee . | . . Uniques/NPCs Destroyed . | . . Combat | -11 -10 -------- Run | Yrd Mat Hostile Shots Fired 84 | . 84 Missed 20 | . 20 Damage Taken 765 | . 765 Core 602 | . 602 Absorbed by Shields . | . . Redirected to Core 534 | . 534 Core Remaining (%) 100 | 100 . Volleys Fired 44 | . 44 Largest 2 | . 2 Hottest 40 | . 40 Shots Fired 88 | . 88 Gun 88 | . 88 Cannon . | . . Launcher . | . . Special . | . . Kinetic 88 | . 88 Thermal . | . . Explosive . | . . Electromagnetic . | . . Robot Hit Streak 11 | . 11 Robot Miss Streak 3 | . 3 Penetration Max . | . . Secondary Targets . | . . Shots Hit Robots 59 | . 59 Core Hits 22 | . 22 Critical Kills . | . . Critical Parts Destroyed . | . . Critical Strikes . | . . Melee Attacks . | . . Impact . | . . Slashing . | . . Piercing . | . . Sneak Attacks . | . . Combat Hostiles . | . . Follow-up Attacks . | . . Damage Inflicted 963 | . 963 Guns 666 | . 666 Cannons . | . . Explosions 293 | . 293 Melee . | . . Ramming 4 | . 4 Kinetic 666 | . 666 Thermal 293 | . 293 Explosive . | . . Electromagnetic . | . . Impact . | . . Slashing . | . . Piercing . | . . Highest Corruption . | . . Average Corruption . | . . Corruption Purged . | . . Corruption Blocked . | . . Overload Shots . | . . Overflow Damage . | . . Projectiles . | . . Explosions . | . . Melee . | . . Knockbacks . | . . Impact . | . . Kinetic . | . . Secondary . | . . Self-Inflicted Damage 133 | . 133 Shots 2 | . 2 Rammed 3 | . 3 Targets Rammed 4 | . 4 Kicked . | . . Crushed 1 | . 1 Highest Temperature 20 | . 20 Average Temperature 8 | . 8 Received Heat Transfer 192 | . 192 Siege Activations . | . . Robots Corrupted . | . . Combat Hostiles . | . . Parts Fried . | . . Impact Corruptions . | . . Robots Melted . | . . Combat Hostiles . | . . Parts Melted . | . . Heat Transferred 200 | . 200 Parts Sabotaged . | . . Parts Stolen . | . . Parts Stripped . | . . Power Chain Reactions . | . . Alert | -11 -10 ------- Run | Yrd Mat Peak Influence 287 | . 287 Initial . | . . Average 140 | . 151 Maximum Alert Level 1 | . 1 Low Security (%) 70 | 100 68 Level 1 29 | . 31 Level 2 . | . . Level 3 . | . . Level 4 . | . . Level 5 . | . . High Security . | . . Max Security . | . . Squads Dispatched 2 | . 2 Investigation . | . . Extermination . | . . Reinforcement 2 | . 2 Assault . | . . Garrison . | . . Intercept . | . . Searches Triggered . | . . Construction Impeded . | . . Haulers Reinforced . | . . Active Scanning Responses . | . . Cargo Convoy Interrupts . | . . Stealth | -11 -10 --------- Run | Yrd Mat Distress Signals . | . . Communications Jammed . | . . Distress Signals . | . . Times Spotted 25 | . 25 Peak Tracking Total 4 | . 4 Tactical Retreats 3 | . 3 Traps | -11 -10 ------- Run | Yrd Mat Traps Triggered . | . . Indirectly . | . . Trap Hack Attempts . | . . Triggered . | . . Disarmed . | . . Reprogrammed . | . . Reused . | . . Traps Extracted . | . . Installed . | . . Triggered . | . . Machines | -11 -10 ---------- Run | Yrd Mat Machines Disabled 5 | . 5 Max in Single Turn 5 | . 5 Machines Repaired . | . . Machines Dismantled . | . . Machines Sabotaged . | . . Overloaded Fab Kills . | . . Hacking | -11 -10 --------- Run | Yrd Mat Machines Accessed 1 | . 1 Terminals 1 | . 1 Fabricators . | . . Repair Stations . | . . Recycling Units . | . . Scanalyzers . | . . Garrison Access . | . . Total Hacks 2 | . 2 Successful . | . . Failed 2 | . 2 Catastrophic 1 | . 1 Database Lockouts . | . . Manual 2 | . 2 Terminals 2 | . 2 Fabricators . | . . Repair Stations . | . . Recycling Units . | . . Scanalyzers . | . . Garrison Access . | . . Terminal Hacks . | . . Fabricator Hacks . | . . Repair Station Hacks . | . . Recycling Unit Hacks . | . . Scanalyzer . | . . Garrison Access Hacks . | . . Unauthorized Hacks . | . . Terminals . | . . Fabricators . | . . Repair Stations . | . . Recycling Units . | . . Scanalyzers . | . . Garrison Access . | . . Data Cores Recovered . | . . Used . | . . Hacking Detections 1 | . 1 Full Trace Events . | . . Feedback Events . | . . Feedback Blocked . | . . Robot Schematics Acquired . | . . Robots Built . | . . Authchips . | . . Time . | . . Total Robot Build Rating . | . . Part Schematics Acquired . | . . Parts Built . | . . Authchips . | . . Time . | . . Total Part Build Rating . | . . Parts Repaired . | . . Time . | . . Parts Recycled . | . . Recycled Matter . | . . Retrieved Matter . | . . Retrieved Components . | . . Parts Scanalyzed . | . . Part Schematics Acquired . | . . Parts Damaged . | . . Bothacking | -11 -10 ------------ Run | Yrd Mat Used RIF Installer . | . . Robots Hacked . | . . Non-combat . | . . Combat . | . . Robot Hacks Applied . | . . Relay Couplers Released . | . . Fabnet Peak Effective % . | . . Robots Rewired . | . . Allies Hacked . | . . Hacks Repelled . | . . Allies | -11 -10 -------- Run | Yrd Mat Total Allies . | . . Largest Group . | . . Highest-Rated Group . | . . Highest-Rated Ally . | . . Total Orders . | . . Ally Attacks . | . . Total Damage . | . . Kills . | . . Allies Corrupted . | . . Allies Melted . | . . Intel | -11 -10 ------- Run | Yrd Mat Robot Analysis Total . | . . Derelict Logs Recovered . | . . Drone Launches . | . . Drone Recoveries . | . . Exploration | -11 -10 ------------- Run | Yrd Mat Turns Passed 692 | 53 639 Spaces Moved 308 | 32 276 Core 7 | 7 . Treads 301 | 25 276 Legs . | . . Wheels . | . . Hover . | . . Flight . | . . Fastest Speed 50 | 50 160 Average Speed 158 | 142 160 Slowest Speed 160 | 160 160 Overloaded Moves . | . . Propulsion Burnouts . | . . Robots Hopped . | . . Cave-ins Triggered . | . . Exploration Rate (%) 20 | 4 37 Regions Visited 1 Branch Regions . Pre-discovered Areas . | . . Known Exits Taken . | . . Unknown Exits Taken 1 | 1 . Scrap Searched . | . . Spaces Dug . | . . Terrain Destroyed 11 | . 11 Melee . | . . Projectile . | . . AOE 11 | . 11 Terrain Rammed . | . . Walls Destroyed . | . . Machines Disabled . | . . Actions | -11 -10 --------- Run | Yrd Mat Total 422 | 39 383 Wait 57 | . 57 Move 307 | 31 276 Hop . | . . Pick Up 4 | 3 1 Fast Attach 3 | 2 1 Attach 3 | 3 . Detach . | . . Swap . | . . Drop . | . . Fire 44 | . 44 Melee . | . . Ram . | . . Kick . | . . Crush 4 | . 4 Escape Stasis . | . . Rewire . | . . Trap . | . . Miscellaneous . | . . Route ------- -11/Scrapyard -10/Materials History --------- Turn | Location | Event 1 | -11/Scrapyard | Upgraded with Propulsion slot (x1) 1 | -11/Scrapyard | Upgraded with Weapon slot (x1) 8 | -11/Scrapyard | Discovered new exit (range 16) 54 | -11/Scrapyard | Entered Materials 302 | -10/Materials | Build established: Mutant 536 | -10/Materials | Core integrity fell below 50% 640 | -10/Materials | Core integrity fell below 20% 683 | -10/Materials | Reached level 2 693 | -10/Materials | Destroyed by G-47 Trooper with Particle Gun Last Messages --------------- 00617_ K-01 Serf destroyed. 00619_ Extracted 36 matter. 00623_ S-10 Pest destroyed. 00624_ Acquired 6 matter. 00639_ S-10 Pest destroyed. 00640_ Acquired 2 matter. 00645_ G-34 Mercenary destroyed. 00645_ R-06 Scavenger collects Sml. Matter Pod. 00648_ Acquired 16 matter. 00648_ K-01 Serf collects debris. 00648_ R-06 Scavenger collects Sml. Laser. 00651_ Slammed into R-06 Scavenger. 00652_ K-01 Serf collects debris. 00654_ Slammed into K-01 Serf. 00667_ K-01 Serf collects debris. 00683_ Reached level 2. 00683_ S-10 Pest destroyed. 00684_ K-01 Serf collects debris. 00689_ K-01 Serf destroyed. 00690_ U-05 Engineer builds a Door. Map ----- +----------------------------------------------------+ | ?#T ## ## # ] #???????????? | | ?#" ## ## # [#???????????? | | ## ## ## ########???????????? | | # ####### ## ## #??????????????????? | | # ###+######## ## ## #??????????????????? | | # ## ## ## = [## !#??????????????????? | | # ##! """ # ###+### %####### ????????? | | + ## """ =# ! % %= * ???????? | | # + """ %+ ! ???????? | | ## ## #^ =* % ############???????? | | ## ## """ # *%####### #??????????????????? | | ## ## """ #####%#?????# #??????????????????? | | ### ## """ #???#%#??? ?# #??????????????????? | | ??# ## #???# #? # #??????????????????? | | ??# ###########???#%#? # ??????????????????? | | ??# #?????????????# ## # ?????????????????? | | ??# ############### ## # ????????????????? | | ??# ## #######+???????????????? | | ???##????# g #""" #??????????????????????? | | ?????????# =# Y"#+####???????????????????? | | ????????## u #???????????????????? | | ????????##% t #???????????????????? | | ????????## #???????????????????? | | ???????### u #???????????????????? | | ???????#" r ]= #???????????????????? | | ???????#" @== #???????????????????? | | ???????#" == #???????????????????? | | ???????### #???????????????????? | | ????????## #???????????????? | | ????????## k #???????????????? | | ????????## [[| % ?????????????? | | ???????? % [| *%s ????????????? | | ?????? k [| o a=s ???????????? | | ????? ############### ######???????????? | | ?????# ##+#######??????????? #????????????????? | | ?????# ?#??????????????????? #????????????????? | | ?????#???????????????????????? #????????????????? | | ?????????????????????????????? #????????????????? | | ??????????????????????????????? #????????????????? | | ?????????????????????????????????????????????????? | | ?????????????????????????????????????????????????? | | ?????????????????????????????????????????????????? | | ?????????????????????????????????????????????????? | | ?????????????????????????????????????????????????? | | ?????????????????????????????????????????????????? | | ?????????????????????????????????????????????????? | | ?????????????????????????????????????????????????? | | ?????????????????????????????????????????????????? | | ?????????????????????????????????????????????????? | | ?????????????????????????????????????????????????? | +----------------------------------------------------+ Best States ------------- Heat Dissipation 25 Energy Generation 10 Energy Capacity 125 Matter Stores 300 Matter Capacity 300 Sight Range 16 Robot Scan Range 6 Terrain Scan Density 10 Evasion (%) 40 Recoil Reduction 2 Offensive Hacking 10 Item Schematics ----------------- None Robot Schematics ------------------ None Fabricated ------------ Nothing Alien Tech Used ----------------- None Achievements -------------- None Challenges ------------ None RPGLIKE | -11 -10 --------- Run | Yrd Mat Levels Raised 1 | . 1 XP Earned 4580 | 3000 1580 XP Spent 2975 | 2975 . Upgrades 9 | 9 . Propulsion Slot 1 | 1 . Weapon Slot 1 | 1 . Inventory Capacity 1 | 1 . Sensor Range 3 | 3 . Ranged Accuracy 3 | 3 . Protomatter Created 10 | . 10 Protomatter Decayed . | . . Game ------ Seed DispersionSalvageField Manual? 0 Play Time 00:05:42 Cumulative 24.9 hours Start 2025.03.21 @ 20:06:23 End 2025.03.21 @ 20:11:50 Sessions 1 Manual Loads 0 Difficulty Rogue Special Mode Winter2019/RPGLIKE Game No. 44 Rogue 44 Adventurer 0 Explorer 0 Win Type - Total 0 Types 0/0/0/0/0/0/0/0/0 Lore% 13 Gallery% 23 Achievement% 22 Wizard Run 0 Options --------- Layout 0 ASCII 0 Keyboard 0 Movement Mouse Keybinds 0 Fullscreen 1 Font 24/Smallcaps Map View 76x56 Zoom Use 46% Tactical HUD 1 Map Filters NONE Filters NONE Steam 1 RUN: b1999454-21b4-43cb-85cf-42c9fb763391